fUST/lending_fUST_20250709
["ID","MTS","AMOUNT","RATE_DAILY","PERIOD"]
[370499650,1752046278425,-460.0,0.00021369,2]
[370499651,1752046278435,-460.0,0.00021369,2]
[370499652,1752046278444,-460.0,0.00021369,2]
[370499653,1752046278454,-460.0,0.00021369,2]
[370499654,1752046278463,-460.0,0.00021369,2]
[370499655,1752046278473,-460.0,0.00021369,2]
[370499656,1752046278483,-222.26566888,0.00021369,2]
[370499657,1752046278492,-460.0,0.00021369,2]
[370499658,1752046278502,-460.0,0.00021369,2]
[370499659,1752046278511,-460.0,0.00021369,2]
[370499660,1752046278520,-460.0,0.00021369,2]
[370499661,1752046278531,-460.0,0.00021369,2]
[370499662,1752046278540,-460.0,0.00021369,2]
[370499663,1752046278550,-460.0,0.00021369,2]
[370499664,1752046278560,-460.0,0.00021369,2]
[370499665,1752046278570,-460.0,0.00021369,2]
[370499666,1752046278579,-460.0,0.00021369,2]
[370499667,1752046278588,-460.0,0.00021369,2]
[370499668,1752046278597,-2255.63,0.00021369,2]
[370499669,1752046278607,-460.0,0.00021369,2]
[370499670,1752046278616,-460.0,0.00021369,2]
[370499671,1752046278625,-460.0,0.00021369,2]
[370499672,1752046278634,-460.0,0.00021369,2]
[370499673,1752046278643,-460.0,0.00021369,2]
[370499674,1752046278652,-1214.04,0.00021369,2]
[370499675,1752046278663,-460.0,0.00021369,2]
[370499676,1752046278672,-460.0,0.00021369,2]
[370499677,1752046278681,-460.0,0.00021369,2]
[370499678,1752046278691,-460.0,0.00021369,2]
[370499679,1752046278700,-460.0,0.00021369,2]
[370499680,1752046278709,-460.0,0.00021369,2]
[370499681,1752046278719,-460.0,0.00021369,2]
[370499682,1752046278729,-1665.78,0.00021369,2]
[370499683,1752046278738,-460.0,0.00021369,2]
[370499684,1752046278747,-460.0,0.00021369,2]
[370499685,1752046278757,-460.0,0.00021369,2]
[370499686,1752046278766,-460.0,0.00021369,2]
[370499687,1752046278775,-460.0,0.00021369,2]
[370499688,1752046278785,-974.46,0.00021369,2]
[370499689,1752046278795,-460.0,0.00021369,2]
[370499690,1752046278804,-1606.11,0.00021369,2]
[370499691,1752046278813,-460.0,0.00021369,2]
[370499692,1752046278822,-460.0,0.00021369,2]
[370499693,1752046278831,-216.60441195,0.00021369,2]
[370499694,1752046278840,-460.0,0.00021369,2]
[370499695,1752046278850,-460.0,0.00021369,2]
[370499696,1752046278859,-460.0,0.00021369,2]
[370499697,1752046278868,-460.0,0.00021369,2]
[370499698,1752046278878,-460.0,0.00021369,2]
[370499699,1752046278887,-460.0,0.00021369,2]
[370499700,1752046278897,-5667.57,0.00021369,2]
[370499701,1752046278908,-460.0,0.00021369,2]
[370499702,1752046278917,-460.0,0.00021369,2]
[370499703,1752046278926,-460.0,0.00021369,2]
[370499704,1752046278935,-821.62,0.00021369,2]
[370499705,1752046278944,-460.0,0.00021369,2]
[370499706,1752046278953,-460.0,0.00021369,2]
[370499707,1752046278963,-460.0,0.00021369,2]
[370499708,1752046278972,-460.0,0.00021369,2]
[370499709,1752046278982,-460.0,0.00021369,2]
[370499710,1752046278991,-460.0,0.00021369,2]
[370499711,1752046279000,-460.0,0.00021369,2]
[370499712,1752046279010,-2220.52,0.00021369,2]
[370499713,1752046279019,-964.04,0.00021369,2]
[370499714,1752046279028,-819.43,0.00021369,2]
[370499715,1752046279037,-460.0,0.00021369,2]
[370499716,1752046279047,-460.0,0.00021369,2]
[370499717,1752046279056,-460.0,0.00021369,2]
[370499718,1752046279066,-389.09419639,0.00021369,2]
[370499719,1752046279075,-460.0,0.00021369,2]
[370499720,1752046279084,-460.0,0.00021369,2]
[370499721,1752046279094,-562.50143048,0.00021369,2]
[370499722,1752046279103,-460.0,0.00021369,2]
[370499723,1752046279113,-1287.33,0.00021369,2]
[370499724,1752046279122,-460.0,0.00021369,2]
[370499725,1752046279131,-460.0,0.00021369,2]
[370499726,1752046279141,-500.0,0.00021369,2]
[370499727,1752046279151,-1354.69,0.00021369,2]
[370499728,1752046279160,-460.0,0.00021369,2]
[370499729,1752046279169,-196.20635067,0.00021369,2]
[370499730,1752046279179,-3485.02,0.00021369,2]
[370499731,1752046279188,-460.0,0.00021369,2]
[370499732,1752046279198,-642.03,0.00021369,2]
[370499733,1752046279207,-460.0,0.00021369,2]
[370499734,1752046279216,-889.1,0.00021369,2]
[370499735,1752046279226,-460.0,0.00021369,2]
[370499736,1752046279235,-529.35,0.00021369,2]
[370499737,1752046279245,-460.0,0.00021369,2]
[370499738,1752046279255,-460.0,0.00021369,2]
[370499739,1752046279264,-826.71,0.00021369,2]
[370499740,1752046279273,-460.0,0.00021369,2]
[370499741,1752046279283,-460.0,0.00021369,2]
[370499742,1752046279292,-460.0,0.00021369,2]
[370499743,1752046279301,-522.97,0.00021369,2]
[370499744,1752046279311,-460.0,0.00021369,2]
[370499745,1752046279320,-463.99,0.00021369,2]
[370499746,1752046279330,-502.2,0.00021369,2]
[370499747,1752046279339,-460.0,0.00021369,2]
[370499748,1752046279349,-460.0,0.00021369,2]
[370499749,1752046279359,-460.0,0.00021369,2]
[370499750,1752046279368,-542.24,0.00021369,2]
[370499751,1752046279378,-460.0,0.00021369,2]
[370499752,1752046279389,-460.0,0.00021369,2]
[370499753,1752046279398,-460.0,0.00021369,2]
[370499754,1752046279407,-460.0,0.00021369,2]
[370499755,1752046279417,-460.0,0.00021369,2]
[370499756,1752046279427,-2648.8,0.00021369,2]
[370499757,1752046279436,-460.0,0.00021369,2]
[370499758,1752046279446,-460.0,0.00021369,2]
[370499759,1752046279455,-460.0,0.00021369,2]
[370499760,1752046279464,-299.46708509,0.00021369,2]
[370499761,1752046279473,-460.0,0.00021369,2]
[370499762,1752046279482,-460.0,0.00021369,2]
[370499763,1752046279493,-151.0,0.00021369,2]
[370499764,1752046279506,-460.0,0.00021369,2]
[370499765,1752046279515,-460.0,0.00021369,2]
[370499766,1752046279526,-460.0,0.00021369,2]
[370499767,1752046279535,-460.0,0.00021369,2]
[370499768,1752046279545,-460.0,0.00021369,2]
[370499769,1752046279554,-482.85790414,0.00021369,2]
[370499770,1752046279564,-3067.18,0.00021369,2]
[370499771,1752046279574,-460.0,0.00021369,2]
[370499772,1752046279583,-460.0,0.00021369,2]
[370499773,1752046279594,-910.86,0.00021369,2]
[370499774,1752046279604,-460.0,0.00021369,2]
[370499775,1752046279613,-578.95,0.00021369,2]
[370499776,1752046279622,-1327.44,0.00021369,2]
[370499777,1752046279631,-525.36,0.00021369,2]
[370499778,1752046279640,-666.88,0.00021369,2]
[370499779,1752046279649,-460.0,0.00021369,2]
[370499780,1752046279658,-460.0,0.00021369,2]
[370499781,1752046279667,-460.0,0.00021369,2]
[370499782,1752046279676,-460.0,0.00021369,2]
[370499783,1752046279686,-4266.21,0.00021369,2]
[370499784,1752046279695,-460.0,0.00021369,2]
[370499785,1752046279705,-586.57,0.00021369,2]
[370499786,1752046279714,-1320.86,0.00021369,2]
[370499787,1752046279723,-588.52,0.00021369,2]
[370499788,1752046279733,-560.94,0.00021369,2]
[370499789,1752046279743,-642.18,0.00021369,2]
[370499790,1752046279752,-460.0,0.00021369,2]
[370499791,1752046279761,-1072.91,0.00021369,2]
[370499792,1752046279771,-460.0,0.00021369,2]
[370499793,1752046279780,-460.0,0.00021369,2]
[370499794,1752046279790,-460.0,0.00021369,2]
[370499795,1752046279801,-460.0,0.00021369,2]
[370499796,1752046279810,-460.0,0.00021369,2]
[370499797,1752046279819,-460.0,0.00021369,2]
[370499798,1752046279828,-460.0,0.00021369,2]
[370499799,1752046279837,-460.0,0.00021369,2]
[370499800,1752046279846,-5192.86,0.00021369,2]
[370499801,1752046279856,-1144.61,0.00021369,2]
[370499802,1752046279865,-151.0,0.00021369,2]
[370499803,1752046279874,-711.99,0.00021369,2]
[370499804,1752046279884,-460.0,0.00021369,2]
[370499805,1752046279894,-151.0,0.00021369,2]
[370499806,1752046279903,-574.16048143,0.00021416,2]
[370499807,1752046279912,-2000.0,0.00021416,2]
[370499808,1752046279922,-2000.0,0.00021416,2]
[370499809,1752046279931,-2000.0,0.00021416,2]
[370499810,1752046279941,-2000.0,0.00021416,2]
[370499811,1752046279950,-2400.0,0.00021416,2]
[370499812,1752046279960,-231.106344,0.00021422,2]
[370499813,1752046279970,-10118.25810976,0.000215,2]
[370499814,1752046279979,-231.106344,0.00021517,2]
[370499815,1752046279988,-222.90520413,0.00021543,2]
[370499816,1752046279998,-1935.48925783,0.00021555,5]
[370499817,1752046280007,-899.90828108,0.00021567,2]
[370499818,1752046280016,-207.0,0.0002161,5]
[370499819,1752046280026,-231.106344,0.00021613,2]
[370499820,1752046280036,-460.0,0.00021643,2]
[370499821,1752046280050,-460.0,0.00021643,2]
[370499822,1752046280165,-472.26780812,0.00021643,2]
[370499823,1752046280177,-493.24,0.00021643,2]
[370499824,1752046280186,-460.0,0.00021643,2]
[370499825,1752046280196,-565.17164476,0.00021643,2]
[370499826,1752046280206,-460.0,0.00021643,2]
[370499827,1752046280215,-460.0,0.00021643,2]
[370499828,1752046280224,-460.0,0.00021643,2]
[370499829,1752046280234,-460.0,0.00021643,2]
[370499830,1752046280243,-460.0,0.00021643,2]
[370499831,1752046280253,-642.44,0.00021643,2]
[370499832,1752046280263,-460.0,0.00021643,2]
[370499833,1752046280272,-460.0,0.00021643,2]
[370499834,1752046280282,-460.0,0.00021643,2]
[370499835,1752046280291,-460.0,0.00021643,2]
[370499836,1752046280300,-161.4,0.00021643,2]
[370499837,1752046280309,-460.0,0.00021643,2]
[370499838,1752046280319,-460.0,0.00021643,2]
[370499839,1752046280328,-460.0,0.00021643,2]
[370499840,1752046280337,-352.26249679,0.00021643,2]
[370499841,1752046280346,-460.0,0.00021643,2]
[370499842,1752046280356,-474.29575338,0.00021643,2]
[370499843,1752046280365,-460.0,0.00021643,2]
[370499844,1752046280374,-460.0,0.00021643,2]
[370499845,1752046280384,-460.0,0.00021643,2]
[370499846,1752046280395,-460.0,0.00021643,2]
[370499847,1752046280405,-460.0,0.00021643,2]
[370499848,1752046280414,-550.0,0.00021643,2]
[370499849,1752046280430,-460.0,0.00021643,2]
[370499850,1752046280439,-460.0,0.00021643,2]
[370499851,1752046280448,-460.0,0.00021643,2]
[370499852,1752046280457,-460.0,0.00021643,2]
[370499853,1752046280466,-460.0,0.00021643,2]
[370499854,1752046280475,-460.0,0.00021643,2]
[370499855,1752046280485,-460.0,0.00021643,2]
[370499856,1752046280494,-460.0,0.00021643,2]
[370499857,1752046280503,-460.0,0.00021643,2]
[370499858,1752046280512,-154.87005517,0.00021643,2]
[370499859,1752046280521,-460.0,0.00021643,2]
[370499860,1752046280531,-460.0,0.00021643,2]
[370499861,1752046280541,-460.0,0.00021643,2]
[370499862,1752046280550,-460.0,0.00021643,2]
[370499863,1752046280560,-460.0,0.00021643,2]
[370499864,1752046280569,-460.0,0.00021643,2]
[370499865,1752046280579,-460.0,0.00021643,2]
[370499866,1752046280588,-460.0,0.00021643,2]
[370499867,1752046280598,-658.11,0.00021643,2]
[370499868,1752046280607,-460.0,0.00021643,2]
[370499869,1752046280616,-460.0,0.00021643,2]
[370499870,1752046280625,-460.0,0.00021643,2]
[370499871,1752046280634,-460.0,0.00021643,2]
[370499872,1752046280644,-460.0,0.00021643,2]
[370499873,1752046280653,-460.0,0.00021643,2]
[370499874,1752046280662,-460.0,0.00021643,2]
[370499875,1752046280671,-664.21,0.00021643,2]
[370499876,1752046280680,-460.0,0.00021643,2]
[370499877,1752046280689,-480.7,0.00021643,2]
[370499878,1752046280699,-460.0,0.00021643,2]
[370499879,1752046280708,-460.0,0.00021643,2]
[370499880,1752046280717,-460.0,0.00021643,2]
[370499881,1752046280728,-460.0,0.00021643,2]
[370499882,1752046280737,-460.0,0.00021643,2]
[370499883,1752046280746,-460.0,0.00021643,2]
[370499884,1752046280755,-460.0,0.00021643,2]
[370499885,1752046280764,-460.0,0.00021643,2]
[370499886,1752046280773,-460.0,0.00021643,2]
[370499887,1752046280782,-460.0,0.00021643,2]
[370499888,1752046280791,-460.0,0.00021643,2]
[370499889,1752046280801,-460.0,0.00021643,2]
[370499890,1752046280810,-460.0,0.00021643,2]
[370499891,1752046280820,-460.0,0.00021643,2]
[370499892,1752046280828,-460.0,0.00021643,2]
[370499893,1752046280838,-2255.63,0.00021643,2]
[370499894,1752046280847,-460.0,0.00021643,2]
[370499895,1752046280856,-460.0,0.00021643,2]
[370499896,1752046280865,-460.0,0.00021643,2]
[370499897,1752046280875,-460.0,0.00021643,2]
[370499898,1752046280884,-460.0,0.00021643,2]
[370499899,1752046280893,-1214.04,0.00021643,2]
[370499900,1752046280902,-460.0,0.00021643,2]
[370499901,1752046280911,-460.0,0.00021643,2]
[370499902,1752046280920,-460.0,0.00021643,2]
[370499903,1752046280930,-460.0,0.00021643,2]
[370499904,1752046280939,-460.0,0.00021643,2]
[370499905,1752046280948,-460.0,0.00021643,2]
[370499906,1752046280958,-460.0,0.00021643,2]
[370499907,1752046280967,-1665.78,0.00021643,2]
[370499908,1752046280977,-460.0,0.00021643,2]
[370499909,1752046280986,-460.0,0.00021643,2]
[370499910,1752046280996,-460.0,0.00021643,2]
[370499911,1752046281005,-562.16,0.00021643,2]
[370499912,1752046281015,-974.46,0.00021643,2]
[370499913,1752046281024,-460.0,0.00021643,2]
[370499914,1752046281033,-460.0,0.00021643,2]
[370499915,1752046281042,-1606.11,0.00021643,2]
[370499916,1752046281051,-162.61600426,0.00021643,2]
[370499917,1752046281061,-460.0,0.00021643,2]
[370499918,1752046281070,-460.0,0.00021643,2]
[370499919,1752046281080,-460.0,0.00021643,2]
[370499920,1752046281089,-460.0,0.00021643,2]
[370499921,1752046281098,-460.0,0.00021643,2]
[370499922,1752046281107,-460.0,0.00021643,2]
[370499923,1752046281117,-460.0,0.00021643,2]
[370499924,1752046281126,-5667.57,0.00021643,2]
[370499925,1752046281135,-460.0,0.00021643,2]
[370499926,1752046281145,-460.0,0.00021643,2]
[370499927,1752046281155,-460.0,0.00021643,2]
[370499928,1752046281167,-821.62,0.00021643,2]
[370499929,1752046281176,-460.0,0.00021643,2]
[370499930,1752046281188,-460.0,0.00021643,2]
[370499931,1752046281197,-460.0,0.00021643,2]
[370499932,1752046281207,-460.0,0.00021643,2]
[370499933,1752046281217,-460.0,0.00021643,2]
[370499934,1752046281226,-460.0,0.00021643,2]
[370499935,1752046281235,-460.0,0.00021643,2]
[370499936,1752046281244,-2220.52,0.00021643,2]
[370499937,1752046281254,-964.04,0.00021643,2]
[370499938,1752046281263,-819.43,0.00021643,2]
[370499939,1752046281273,-460.0,0.00021643,2]
[370499940,1752046281281,-460.0,0.00021643,2]
[370499941,1752046281291,-460.0,0.00021643,2]
[370499942,1752046281300,-460.0,0.00021643,2]
[370499943,1752046281310,-460.0,0.00021643,2]
[370499944,1752046281319,-1287.33,0.00021643,2]
[370499945,1752046281328,-460.0,0.00021643,2]
[370499946,1752046281338,-460.0,0.00021643,2]
[370499947,1752046281347,-460.0,0.00021643,2]
[370499948,1752046281357,-500.0,0.00021643,2]
[370499949,1752046281367,-1354.69,0.00021643,2]
[370499950,1752046281376,-460.0,0.00021643,2]
[370499951,1752046281386,-3485.02,0.00021643,2]
[370499952,1752046281395,-460.0,0.00021643,2]
[370499953,1752046281405,-642.03,0.00021643,2]
[370499954,1752046281415,-460.0,0.00021643,2]
[370499955,1752046281424,-889.1,0.00021643,2]
[370499956,1752046281434,-460.0,0.00021643,2]
[370499957,1752046281444,-529.35,0.00021643,2]
[370499958,1752046281453,-460.0,0.00021643,2]
[370499959,1752046281462,-826.71,0.00021643,2]
[370499960,1752046281471,-460.0,0.00021643,2]
[370499961,1752046281481,-460.0,0.00021643,2]
[370499962,1752046281490,-460.0,0.00021643,2]
[370499963,1752046281500,-226.08262577,0.00021643,2]
[370499964,1752046281509,-522.97,0.00021643,2]
[370499965,1752046281519,-460.0,0.00021643,2]
[370499966,1752046281528,-151.0,0.00021643,2]
[370499967,1752046281538,-463.99,0.00021643,2]
[370499968,1752046281547,-502.2,0.00021643,2]
[370499969,1752046281556,-460.0,0.00021643,2]
[370499970,1752046281565,-460.0,0.00021643,2]
[370499971,1752046281574,-460.0,0.00021643,2]
[370499972,1752046281584,-542.24,0.00021643,2]
[370499973,1752046281594,-460.0,0.00021643,2]
[370499974,1752046281604,-460.0,0.00021643,2]
[370499975,1752046281614,-460.0,0.00021643,2]
[370499976,1752046281623,-460.0,0.00021643,2]
[370499977,1752046281633,-460.0,0.00021643,2]
[370499978,1752046281642,-2648.8,0.00021643,2]
[370499979,1752046281651,-460.0,0.00021643,2]
[370499980,1752046281661,-151.0,0.00021643,2]
[370499981,1752046281671,-460.0,0.00021643,2]
[370499982,1752046281680,-239.30576569,0.00021643,2]
[370499983,1752046281690,-460.0,0.00021643,2]
[370499984,1752046281700,-460.0,0.00021643,2]
[370499985,1752046281710,-460.0,0.00021643,2]
[370499986,1752046281719,-460.0,0.00021643,2]
[370499987,1752046281729,-460.0,0.00021643,2]
[370499988,1752046281738,-460.0,0.00021643,2]
[370499989,1752046281748,-460.0,0.00021643,2]
[370499990,1752046281757,-151.0,0.00021643,2]
[370499991,1752046281767,-3067.18,0.00021643,2]
[370499992,1752046281777,-460.0,0.00021643,2]
[370499993,1752046281787,-151.0,0.00021643,2]
[370499994,1752046281796,-460.0,0.00021643,2]
[370499995,1752046281805,-910.86,0.00021643,2]
[370499996,1752046281815,-460.0,0.00021643,2]
[370499997,1752046281824,-578.95,0.00021643,2]
[370499998,1752046281834,-1327.44,0.00021643,2]
[370499999,1752046281843,-525.36,0.00021643,2]
[370500000,1752046281852,-666.88,0.00021643,2]
[370500001,1752046281861,-460.0,0.00021643,2]
[370500002,1752046281871,-460.0,0.00021643,2]
[370500003,1752046281880,-589.98,0.00021643,2]
[370500004,1752046281890,-460.0,0.00021643,2]
[370500005,1752046281899,-4266.21,0.00021643,2]
[370500006,1752046281909,-460.0,0.00021643,2]
[370500007,1752046281918,-586.57,0.00021643,2]
[370500008,1752046281927,-1320.86,0.00021643,2]
[370500009,1752046281936,-588.52,0.00021643,2]
[370500010,1752046281945,-560.94,0.00021643,2]
[370500011,1752046281954,-642.18,0.00021643,2]
[370500012,1752046281962,-460.0,0.00021643,2]
[370500013,1752046281972,-1072.91,0.00021643,2]
[370500014,1752046281981,-460.0,0.00021643,2]
[370500015,1752046281990,-460.0,0.00021643,2]
[370500016,1752046282000,-460.0,0.00021643,2]
[370500017,1752046282009,-460.0,0.00021643,2]
[370500018,1752046282018,-460.0,0.00021643,2]
[370500019,1752046282027,-460.68905098,0.00021643,2]
[370500020,1752046282036,-460.0,0.00021643,2]
[370500021,1752046282046,-460.0,0.00021643,2]
[370500022,1752046282055,-5192.86,0.00021643,2]
[370500023,1752046282064,-1144.61,0.00021643,2]
[370500024,1752046282074,-711.99,0.00021643,2]
[370500025,1752046282083,-460.0,0.00021643,2]
[370500026,1752046282093,-2240.24514543,0.00021664,2]
[370500027,1752046282103,-231.106344,0.00021709,2]
[370500028,1752046282112,-151.0,0.00021796,2]
[370500029,1752046282122,-151.0,0.00021796,2]
[370500030,1752046282131,-1935.48925783,0.00021797,6]
[370500031,1752046282141,-231.106344,0.00021804,2]
[370500032,1752046282150,-1500.0,0.00021912,2]
[370500033,1752046282160,-1000.0,0.00021912,2]
[370500034,1752046282170,-2276.84743112,0.00021916,2]
[370500035,1752046282179,-460.0,0.00021917,2]
[370500036,1752046282190,-460.0,0.00021917,2]
[370500037,1752046282199,-151.0,0.00021917,2]
[370500038,1752046282208,-460.0,0.00021917,2]
[370500039,1752046282218,-460.0,0.00021917,2]
[370500040,1752046282227,-460.0,0.00021917,2]
[370500041,1752046282236,-468.77464405,0.00021917,2]
[370500042,1752046282246,-460.0,0.00021917,2]
[370500043,1752046282257,-642.44,0.00021917,2]
[370500044,1752046282267,-460.0,0.00021917,2]
[370500045,1752046282276,-460.0,0.00021917,2]
[370500046,1752046282285,-460.0,0.00021917,2]
[370500047,1752046282294,-151.0,0.00021917,2]
[370500048,1752046282304,-151.0,0.00021917,2]
[370500049,1752046282313,-460.0,0.00021917,2]
[370500050,1752046282323,-460.0,0.00021917,2]
[370500051,1752046282332,-460.0,0.00021917,2]
[370500052,1752046282342,-460.0,0.00021917,2]
[370500053,1752046282351,-460.0,0.00021917,2]
[370500054,1752046282361,-460.0,0.00021917,2]
[370500055,1752046282370,-475.70427112,0.00021917,2]
[370500056,1752046282379,-460.0,0.00021917,2]
[370500057,1752046282391,-497.02704354,0.00021917,2]
[370500058,1752046282400,-460.0,0.00021917,2]
[370500059,1752046282409,-460.0,0.00021917,2]
[370500060,1752046282418,-460.0,0.00021917,2]
[370500061,1752046282427,-151.0,0.00021917,2]
[370500062,1752046282437,-460.0,0.00021917,2]
[370500063,1752046282446,-297.78,0.00021917,2]
[370500064,1752046282455,-595.52981529,0.00021917,2]
[370500065,1752046282464,-460.0,0.00021917,2]
[370500066,1752046282474,-460.0,0.00021917,2]
[370500067,1752046282483,-460.0,0.00021917,2]
[370500068,1752046282492,-460.0,0.00021917,2]
[370500069,1752046282501,-460.0,0.00021917,2]
[370500070,1752046282510,-460.0,0.00021917,2]
[370500071,1752046282519,-181.139617,0.00021917,2]
[370500072,1752046282528,-460.0,0.00021917,2]
[370500073,1752046282537,-460.0,0.00021917,2]
[370500074,1752046282547,-460.0,0.00021917,2]
[370500075,1752046282556,-460.0,0.00021917,2]
[370500076,1752046282566,-280.4211514,0.00021917,2]
[370500077,1752046282576,-658.11,0.00021917,2]
[370500078,1752046282585,-460.0,0.00021917,2]
[370500079,1752046282594,-188.43,0.00021917,2]
[370500080,1752046282604,-502.38,0.00021917,2]
[370500081,1752046282612,-460.0,0.00021917,2]
[370500082,1752046282622,-460.0,0.00021917,2]
[370500083,1752046282631,-460.0,0.00021917,2]
[370500084,1752046282640,-664.21,0.00021917,2]
[370500085,1752046282649,-460.0,0.00021917,2]
[370500086,1752046282658,-460.0,0.00021917,2]
[370500087,1752046282667,-460.0,0.00021917,2]
[370500088,1752046282676,-460.0,0.00021917,2]
[370500089,1752046282686,-460.0,0.00021917,2]
[370500090,1752046282695,-460.0,0.00021917,2]
[370500091,1752046282704,-460.0,0.00021917,2]
[370500092,1752046282713,-460.0,0.00021917,2]
[370500093,1752046282722,-460.0,0.00021917,2]
[370500094,1752046282731,-460.0,0.00021917,2]
[370500095,1752046282740,-460.0,0.00021917,2]
[370500096,1752046282749,-460.0,0.00021917,2]
[370500097,1752046282758,-460.0,0.00021917,2]
[370500098,1752046282767,-460.0,0.00021917,2]
[370500099,1752046282776,-460.0,0.00021917,2]
[370500100,1752046282786,-178.187632,0.00021917,2]
[370500101,1752046282797,-2255.63,0.00021917,2]
[370500102,1752046282808,-460.0,0.00021917,2]
[370500103,1752046282817,-460.0,0.00021917,2]
[370500104,1752046282826,-460.0,0.00021917,2]
[370500105,1752046282835,-460.0,0.00021917,2]
[370500106,1752046282844,-151.0,0.00021917,2]
[370500107,1752046282854,-460.0,0.00021917,2]
[370500108,1752046282864,-151.0,0.00021917,2]
[370500109,1752046282873,-1214.04,0.00021917,2]
[370500110,1752046282883,-460.0,0.00021917,2]
[370500111,1752046282892,-460.0,0.00021917,2]
[370500112,1752046282901,-460.0,0.00021917,2]
[370500113,1752046282910,-460.0,0.00021917,2]
[370500114,1752046282920,-460.0,0.00021917,2]
[370500115,1752046282929,-460.0,0.00021917,2]
[370500116,1752046282938,-460.0,0.00021917,2]
[370500117,1752046282947,-1665.78,0.00021917,2]
[370500118,1752046282957,-460.0,0.00021917,2]
[370500119,1752046282967,-157.22961,0.00021917,2]
[370500120,1752046282978,-460.0,0.00021917,2]
[370500121,1752046282987,-157.22961,0.00021917,2]
[370500122,1752046282998,-460.0,0.00021917,2]
[370500123,1752046283007,-974.46,0.00021917,2]
[370500124,1752046283017,-460.0,0.00021917,2]
[370500125,1752046283027,-431.92151567,0.00021917,2]
[370500126,1752046283036,-1606.11,0.00021917,2]
[370500127,1752046283045,-460.0,0.00021917,2]
[370500128,1752046283055,-460.0,0.00021917,2]
[370500129,1752046283064,-460.0,0.00021917,2]
[370500130,1752046283073,-460.0,0.00021917,2]
[370500131,1752046283082,-460.0,0.00021917,2]
[370500132,1752046283092,-460.0,0.00021917,2]
[370500133,1752046283101,-460.0,0.00021917,2]
[370500134,1752046283110,-5667.57,0.00021917,2]
[370500135,1752046283120,-460.0,0.00021917,2]
[370500136,1752046283129,-460.0,0.00021917,2]
[370500137,1752046283138,-460.0,0.00021917,2]
[370500138,1752046283147,-821.62,0.00021917,2]
[370500139,1752046283156,-460.0,0.00021917,2]
[370500140,1752046283166,-460.0,0.00021917,2]
[370500141,1752046283176,-460.0,0.00021917,2]
[370500142,1752046283185,-460.0,0.00021917,2]
[370500143,1752046283195,-460.0,0.00021917,2]
[370500144,1752046283204,-460.0,0.00021917,2]
[370500145,1752046283213,-460.0,0.00021917,2]
[370500146,1752046283222,-2220.52,0.00021917,2]
[370500147,1752046283231,-964.04,0.00021917,2]
[370500148,1752046283241,-819.43,0.00021917,2]
[370500149,1752046283250,-460.0,0.00021917,2]